[Event "10th Cesme Open-B 2024"]
[Site "Cesme"]
[Date "2024.06.28"]
[Round "7"]
[White "Yardimci, Can"]
[Black "Turan, Asim"]
[Result "1/2-1/2"]
[ECO "C47"]
[WhiteElo "1919"]
[BlackElo "1970"]
[Annotator "NA RC"]
[PlyCount "99"]
[EventDate "2024.06.23"]
[EventType "swiss"]
[EventCountry "TUR"]
[SourceTitle "playchess.com"]
[Source "ChessBase"]
[SourceQuality "1"]
[TimeControl "5400+30"]

1. e4 {[%emt 0:01:00]} e5 {[%emt 0:01:00]} 2. Nf3 {[%emt 0:00:00]} Nc6 {[%emt 0:00:30]} 3. Nc3 {[%emt 0:00:00]} Nf6 {[%emt 0:00:30]} 4. a3 {[%emt 0:00:30]} Be7 {[%emt 0:00:30]} 5. d4 {[%emt 0:00:30]} d6 {[%emt 0:00:30]} 6. dxe5 {[%emt 0:00:30]} dxe5 {[%emt 0:00:30]} 7. Qxd8+ {[%emt 0:00:30]} Bxd8 {[%emt 0:00:00]} 8. Bg5 {[%emt 0:05:30]} Bg4 {[%emt 0:04:00]} 9. Bb5 {[%emt 0:02:30]} Bxf3 {[%emt 0:01:30]} 10. Bxc6+ {[%emt 0:01:30]} bxc6 {[%emt 0:00:30]} 11. gxf3 {[%emt 0:00:30]} Nd7 {[%emt 0:00:30]} 12. Bxd8 {[%emt 0:09:30]} Rxd8 {[%emt 0:00:30]} 13. Ke2 {[%emt 0:00:30]} Nc5 {[%emt 0:01:30]} 14. Ke3 {[%emt 0:01:30]} Ne6 {[%emt 0:02:30]} 15. Ne2 {[%emt 0:02:30]} Ke7 {[%emt 0:01:30]} 16. Rad1 {[%emt 0:00:30]} Rd6 {[%emt 0:05:30]} 17. Rd3 {[%emt 0:07:30]} Rb8 {[%emt 0:02:30]} 18. Rb1 {[%emt 0:02:30]} g5 {[%emt 0:07:30]} 19. b4 {[%emt 0:10:30]} Rbd8 {[%emt 0:05:30]} 20. h4 {[%emt 0:02:30]} Nf4 {[%emt 0:02:30]} 21. Nxf4 {[%emt 0:01:30]} exf4+ {[%emt 0:00:30]} 22. Ke2 {[%emt 0:00:00]} gxh4 {[%emt 0:00:30]} 23. Rh1 {[%emt 0:01:00]} Rh6 {[%emt 0:00:00]} 24. Rxd8 {[%emt 0:02:30]} Kxd8 {[%emt 0:00:00]} 25. e5 {[%emt 0:05:30]} Ke7 {[%emt 0:15:30]} 26. Kd3 {[%emt 0:00:30]} f5 {[%emt 0:00:30]} 27. exf6+ {[%emt 0:00:30]} Kxf6 {[%emt 0:00:30]} 28. Ke4 {[%emt 0:00:30]} h3 {[%emt 0:00:30]} 29. Kxf4 {[%emt 0:01:30]} h2 {[%emt 0:00:30]} 30. c4 {[%emt 0:17:30]} a6 {[%emt 0:01:30]} 31. c5 {[%emt 0:03:30]} Rh5 {[%emt 0:00:30]} 32. Kg3 {[%emt 0:01:30]} Rg5+ {[%emt 0:02:30]} 33. Kxh2 {[%emt 0:00:30]} Rh5+ {[%emt 0:00:30]} 34. Kg2 {[%emt 0:00:30]} Rxh1 {[%emt 0:00:30]} 35. Kxh1 {[%emt 0:00:00]} Kf5 {[%emt 0:00:00]} 36. Kh2 {[%emt 0:01:40]} Kf4 {[%emt 0:07:00]} 37. Kg2 {[%emt 0:00:14]} h6 {[%emt 0:00:30]} 38. a4 {[%emt 0:01:53]} h5 {[%emt 0:02:30]} 39. a5 {[%emt 0:01:48]} h4 {[%emt 0:05:30]} 40. Kh3 {[%emt 0:00:30]} Kxf3 {[%emt 0:00:30]} 41. Kxh4 {[%emt 0:00:30]} Kxf2 {[%emt 0:00:00]} 42. Kg5 {[%emt 0:00:00]} Ke3 {[%emt 0:00:00]} 43. Kf5 {[%emt 0:00:13]} Kd4 {[%emt 0:00:30]} 44. Ke6 {[%emt 0:00:30]} Kc4 {[%emt 0:00:00]} 45. Kd7 {[%emt 0:00:00]} Kxb4 {[%emt 0:00:00]} 46. Kxc6 {[%emt 0:00:00]} Kc4 {[%emt 0:03:30]} 47. Kb7 {[%emt 0:00:00]} Kxc5 {[%emt 0:00:30]} 48. Kxa6 {[%emt 0:00:24]} Kb4 {[%emt 0:00:30]} 49. Kb7 {[%emt 0:00:00]} Kxa5 {[%emt 0:00:00]} 50. Kxc7 {[%emt 0:00:18]} 1/2-1/2

[Event "10th Cesme Open-B 2024"]
[Site "Cesme"]
[Date "2024.06.28"]
[Round "7"]
[White "Celik, Eylul"]
[Black "Dirikolu, Deniz"]
[Result "0-1"]
[ECO "E00"]
[WhiteElo "1904"]
[BlackElo "1978"]
[Annotator "NA RC"]
[PlyCount "84"]
[EventDate "2024.06.23"]
[EventType "swiss"]
[EventCountry "TUR"]
[SourceTitle "playchess.com"]
[Source "ChessBase"]
[SourceQuality "1"]
[TimeControl "5400+30"]

1. d4 {[%emt 0:01:00]} Nf6 {[%emt 0:01:00]} 2. c4 {[%emt 0:00:30]} e6 {[%emt 0:00:30]} 3. Bg5 {[%emt 0:00:00]} c5 {[%emt 0:00:30]} 4. d5 {[%emt 0:00:00]} exd5 {[%emt 0:00:00]} 5. cxd5 {[%emt 0:00:30]} h6 {[%emt 0:00:00]} 6. Bxf6 {[%emt 0:02:30]} Qxf6 {[%emt 0:00:00]} 7. Nc3 {[%emt 0:00:30]} g6 {[%emt 0:00:00]} 8. Nf3 {[%emt 0:00:30]} Bg7 {[%emt 0:00:00]} 9. e4 {[%emt 1:29:30]} d6 {[%emt 0:00:00]} 10. Qa4+ {[%emt 0:00:00]} Nd7 {[%emt 0:01:30]} 11. Bb5 {[%emt 0:00:00]} a6 {[%emt 0:00:30]} 12. O-O {[%emt 0:00:00]} Rb8 {[%emt 0:00:00]} 13. Bxd7+ {[%emt 0:00:00]} Bxd7 {[%emt 0:00:00]} 14. Qa5 {[%emt 0:00:00]} Qd8 {[%emt 0:01:30]} 15. Qxd8+ {[%emt 0:00:00]} Kxd8 {[%emt 0:00:30]} 16. Rfe1 {[%emt 0:00:00]} Re8 {[%emt 0:00:00]} 17. Rac1 {[%emt 0:00:00]} b5 {[%emt 0:00:00]} 18. Rc2 {[%emt 0:00:00]} b4 {[%emt 0:00:30]} 19. Nd1 {[%emt 0:00:00]} Bb5 {[%emt 0:11:30]} 20. Re3 {[%emt 0:00:00]} Kd7 {[%emt 0:00:30]} 21. b3 {[%emt 0:00:00]} Re7 {[%emt 0:02:30]} 22. e5 {[%emt 0:00:00]} Rbe8 {[%emt 0:00:00]} 23. exd6 {[%emt 0:00:00]} Kxd6 {[%emt 0:00:00]} 24. Rd2 {[%emt 0:00:00]} h5 {[%emt 0:00:30]} 25. Rxe7 {[%emt 0:00:00]} Rxe7 {[%emt 0:00:30]} 26. Ne3 {[%emt 0:00:00]} Bh6 {[%emt 0:00:30]} 27. Rc2 {[%emt 0:00:00]} Bd3 {[%emt 0:05:30]} 28. Rb2 {[%emt 0:01:33]} Bxe3 {[%emt 0:02:30]} 29. fxe3 {[%emt 0:00:02]} Rxe3 {[%emt 0:00:00]} 30. Kf2 {[%emt 0:00:58]} Re7 {[%emt 0:00:00]} 31. Rd2 {[%emt 0:02:00]} Bf5 {[%emt 0:00:30]} 32. Ng5 {[%emt 0:00:43]} f6 {[%emt 0:00:00]} 33. Ne6 {[%emt 0:01:53]} Bxe6 {[%emt 0:00:00]} 34. dxe6+ {[%emt 0:00:30]} Kxe6 {[%emt 0:00:00]} 35. Kf3 {[%emt 0:00:42]} Rd7 {[%emt 0:00:00]} 36. Rc2 {[%emt 0:00:45]} Rd3+ {[%emt 0:00:30]} 37. Ke4 {[%emt 0:01:13]} Rc3 {[%emt 0:00:30]} 38. Rxc3 {[%emt 0:00:57]} bxc3 {[%emt 0:00:30]} 39. Kd3 {[%emt 0:00:00]} g5 {[%emt 0:00:00]} 40. Kxc3 {[%emt 0:00:05]} Kd5 {[%emt 0:00:00]} 41. Kd3 {[%emt 0:00:27]} f5 {[%emt 0:00:00]} 42. a3 {[%emt 0:01:17]} a5 {[%emt 0:00:00]} 0-1

[Event "10th Cesme Open-B 2024"]
[Site "Cesme"]
[Date "2024.06.28"]
[Round "7"]
[White "Buyuk, Eymen Eren"]
[Black "Yildiz, Talat"]
[Result "1/2-1/2"]
[ECO "E51"]
[WhiteElo "1894"]
[BlackElo "1891"]
[Annotator "NA RC"]
[PlyCount "76"]
[EventDate "2024.06.23"]
[EventType "swiss"]
[EventCountry "TUR"]
[SourceTitle "playchess.com"]
[Source "ChessBase"]
[SourceQuality "1"]
[TimeControl "5400+30"]

1. d4 {[%emt 0:01:00]} Nf6 {[%emt 0:01:00]} 2. c4 {[%emt 0:00:30]} e6 {[%emt 0:00:30]} 3. Nc3 {[%emt 0:00:30]} Bb4 {[%emt 0:00:00]} 4. e3 {[%emt 0:00:00]} O-O {[%emt 0:00:00]} 5. Nf3 {[%emt 0:00:00]} d5 {[%emt 0:00:30]} 6. Bd2 {[%emt 0:00:30]} c5 {[%emt 1:31:30]} 7. a3 {[%emt 0:00:00]} Bxc3 {[%emt 0:00:00]} 8. Bxc3 {[%emt 0:01:00]} Ne4 {[%emt 0:00:00]} 9. Rc1 {[%emt 0:00:00]} Nxc3 {[%emt 0:00:00]} 10. Rxc3 {[%emt 0:01:00]} cxd4 {[%emt 0:00:00]} 11. Nxd4 {[%emt 0:00:00]} dxc4 {[%emt 0:00:00]} 12. Bxc4 {[%emt 0:01:00]} a6 {[%emt 0:00:00]} 13. O-O {[%emt 0:02:30]} Bd7 {[%emt 0:00:00]} 14. Qh5 {[%emt 0:12:30]} Nc6 {[%emt 0:00:00]} 15. Rd1 {[%emt 0:03:30]} Qe7 {[%emt 0:00:00]} 16. Nb3 {[%emt 0:13:30]} Rfd8 {[%emt 0:00:00]} 17. e4 {[%emt 0:04:30]} Be8 {[%emt 0:00:00]} 18. Re1 {[%emt 0:03:30]} b5 {[%emt 0:00:00]} 19. Rh3 {[%emt 0:08:30]} h6 {[%emt 0:00:00]} 20. Bd3 {[%emt 0:04:30]} f6 {[%emt 0:00:00]} 21. Qh4 {[%emt 0:01:30]} e5 {[%emt 0:00:00]} 22. Be2 {[%emt 0:05:30]} Nd4 {[%emt 0:00:00]} 23. Bg4 {[%emt 0:00:30]} Nxb3 {[%emt 0:00:00]} 24. Rxb3 {[%emt 0:00:30]} Rd2 {[%emt 0:00:00]} 25. h3 {[%emt 0:02:30]} Rad8 {[%emt 0:00:00]} 26. Rc1 {[%emt 0:02:30]} Bf7 {[%emt 0:03:22]} 27. Rbc3 {[%emt 0:02:30]} Rxb2 {[%emt 0:00:36]} 28. Qg3 {[%emt 0:04:30]} Rbd2 {[%emt 0:03:29]} 29. Rc7 {[%emt 0:00:30]} Qf8 {[%emt 0:00:26]} 30. Qe3 {[%emt 0:05:30]} h5 {[%emt 0:01:43]} 31. Bf5 {[%emt 0:00:30]} g6 {[%emt 0:02:10]} 32. Qg3 {[%emt 0:08:01]} R8d3 {[%emt 0:00:10]} 33. f3 {[%emt 0:00:56]} Rd1+ {[%emt 0:00:13]} 34. Kh2 {[%emt 0:01:37]} Rxc1 {[%emt 0:00:08]} 35. Rxc1 {[%emt 0:00:00]} Qh6 {[%emt 0:01:26]} 36. Rc8+ {[%emt 0:00:16]} Kg7 {[%emt 0:00:30]} 37. Rc7 {[%emt 0:00:30]} Rd8 {[%emt 0:00:30]} 38. Be6 {[%emt 0:00:30]} Rf8 {[%emt 0:00:30]} 1/2-1/2

[Event "10th Cesme Open-B 2024"]
[Site "Cesme"]
[Date "2024.06.28"]
[Round "7"]
[White "Varyemez, Ali"]
[Black "Ilgaz, Yusuf Kerem"]
[Result "0-1"]
[ECO "E08"]
[WhiteElo "1889"]
[BlackElo "1966"]
[Annotator "RC"]
[PlyCount "90"]
[EventDate "2024.06.23"]
[EventType "swiss"]
[EventCountry "TUR"]
[SourceTitle "playchess.com"]
[Source "ChessBase"]
[SourceQuality "1"]
[TimeControl "5400+30"]

1. d4 {[%emt 0:01:00]} d5 {[%emt 0:02:00]} 2. c4 {[%emt 0:00:00]} e6 {[%emt 0:00:30]} 3. Nf3 {[%emt 0:00:00]} Nf6 {[%emt 0:00:30]} 4. g3 {[%emt 0:00:30]} Bb4+ {[%emt 0:00:30]} 5. Bd2 {[%emt 0:00:30]} Be7 {[%emt 0:00:00]} 6. Bg2 {[%emt 0:00:00]} O-O {[%emt 0:00:00]} 7. Qc2 {[%emt 0:00:00]} c6 {[%emt 0:00:30]} 8. O-O {[%emt 0:00:00]} Nbd7 {[%emt 0:00:00]} 9. Bf4 {[%emt 0:00:00]} a5 {[%emt 0:00:00]} 10. Rd1 {[%emt 0:00:30]} a4 {[%emt 0:00:00]} 11. a3 {[%emt 0:07:30]} Ne4 {[%emt 0:09:00]} 12. Nc3 {[%emt 0:05:30]} Nxc3 {[%emt 0:00:30]} 13. Qxc3 {[%emt 0:00:30]} Nb6 {[%emt 0:02:30]} 14. Nd2 {[%emt 0:03:30]} f5 {[%emt 0:21:30]} 15. h4 {[%emt 0:19:30]} h6 {[%emt 0:02:30]} 16. h5 {[%emt 0:05:30]} Bg5 {[%emt 0:10:30]} 17. e3 {[%emt 0:07:30]} Nd7 {[%emt 0:06:30]} 18. Bf3 {[%emt 0:03:30]} Nf6 {[%emt 0:01:30]} 19. Kg2 {[%emt 0:00:30]} Ne4 {[%emt 0:03:30]} 20. Bxe4 {[%emt 0:01:30]} fxe4 {[%emt 0:01:30]} 21. f3 {[%emt 0:09:30]} Bxf4 {[%emt 0:10:30]} 22. gxf4 {[%emt 0:00:30]} exf3+ {[%emt 0:03:30]} 23. Nxf3 {[%emt 0:00:30]} dxc4 {[%emt 0:00:30]} 24. Ne5 {[%emt 0:01:30]} b5 {[%emt 0:01:30]} 25. Rh1 {[%emt 0:03:30]} c5 {[%emt 0:01:30]} 26. dxc5 {[%emt 0:04:30]} Qd5+ {[%emt 0:00:30]} 27. Kf2 {[%emt 0:01:30]} Qxc5 {[%emt 0:01:30]} 28. Rh4 {[%emt 0:01:30]} Rb8 {[%emt 0:05:36]} 29. Rg4 {[%emt 0:17:54]} b4 {[%emt 0:01:57]} 30. axb4 {[%emt 0:02:05]} Qxb4 {[%emt 0:00:07]} 31. Rag1 {[%emt 0:01:41]} Qxb2+ {[%emt 0:01:16]} 32. Qxb2 {[%emt 0:00:33]} Rxb2+ {[%emt 0:00:30]} 33. Kf3 {[%emt 0:00:00]} Rb7 {[%emt 0:02:28]} 34. Nxc4 {[%emt 0:00:52]} Rd8 {[%emt 0:01:06]} 35. Ra1 {[%emt 0:01:50]} Ra7 {[%emt 0:00:26]} 36. Ra3 {[%emt 0:00:29]} Bb7+ {[%emt 0:00:22]} 37. Kf2 {[%emt 0:01:23]} Rc8 {[%emt 0:01:32]} 38. Nb6 {[%emt 0:01:15]} Rc2+ {[%emt 0:00:09]} 39. Ke1 {[%emt 0:00:24]} Bc6 {[%emt 0:00:53]} 40. Rg6 {[%emt 0:00:48]} Rb7 {[%emt 0:02:48]} 41. Kd1 {[%emt 0:00:30]} Rh2 {[%emt 0:00:30]} 42. Rxe6 {[%emt 0:00:30]} Rxb6 {[%emt 0:00:30]} 43. Kc1 {[%emt 0:00:01]} Ra6 {[%emt 0:01:29]} 44. Rc3 {[%emt 0:00:16]} Bb7 {[%emt 0:01:55]} 45. Rc7 {[%emt 0:01:14]} Rxe6 {[%emt 0:00:11]} 0-1

[Event "10th Cesme Open-B 2024"]
[Site "Cesme"]
[Date "2024.06.28"]
[Round "7"]
[White "Sevig, Mert Can"]
[Black "Yelligedik, Murat"]
[Result "0-1"]
[ECO "C04"]
[WhiteElo "1881"]
[BlackElo "1984"]
[Annotator "NA RC"]
[PlyCount "52"]
[EventDate "2024.06.23"]
[EventType "swiss"]
[EventCountry "TUR"]
[SourceTitle "playchess.com"]
[Source "ChessBase"]
[SourceQuality "1"]
[TimeControl "5400+30"]

1. e4 {[%emt 0:01:00]} e6 {[%emt 0:01:00]} 2. d4 {[%emt 0:00:30]} d5 {[%emt 0:00:30]} 3. Nd2 {[%emt 0:00:30]} Nc6 {[%emt 0:00:00]} 4. Ngf3 {[%emt 0:00:00]} Nf6 {[%emt 0:00:00]} 5. e5 {[%emt 0:01:00]} Ng4 {[%emt 0:00:00]} 6. c3 {[%emt 0:04:30]} f6 {[%emt 0:00:00]} 7. Bb5 {[%emt 0:01:30]} Bd7 {[%emt 0:07:30]} 8. Qe2 {[%emt 0:05:30]} Be7 {[%emt 0:21:30]} 9. Nf1 {[%emt 0:11:30]} fxe5 {[%emt 0:01:30]} 10. Bxc6 {[%emt 0:01:30]} bxc6 {[%emt 0:02:30]} 11. dxe5 {[%emt 0:01:30]} O-O {[%emt 0:01:30]} 12. h3 {[%emt 0:01:30]} Nh6 {[%emt 0:01:30]} 13. Bxh6 {[%emt 0:00:30]} gxh6 {[%emt 0:00:00]} 14. Ng3 {[%emt 0:01:30]} Qe8 {[%emt 0:00:00]} 15. Nh2 {[%emt 0:11:30]} Qg6 {[%emt 0:08:30]} 16. O-O {[%emt 0:02:30]} Rf4 {[%emt 0:02:30]} 17. Ng4 {[%emt 0:25:30]} Kh8 {[%emt 0:00:30]} 18. Qe3 {[%emt 0:00:30]} Bg5 {[%emt 0:04:30]} 19. Qc5 {[%emt 0:02:30]} h5 {[%emt 0:06:30]} 20. Ne3 {[%emt 0:01:30]} Rg8 {[%emt 0:02:30]} 21. Ne2 {[%emt 0:02:30]} Rf3 {[%emt 0:02:30]} 22. Ng4 {[%emt 0:06:05]} Rf7 {[%emt 0:00:30]} 23. Qxa7 {[%emt 0:05:02]} hxg4 {[%emt 0:00:30]} 24. hxg4 {[%emt 0:00:02]} Qe4 {[%emt 0:01:30]} 25. Rae1 {[%emt 0:03:43]} Qxg4 {[%emt 0:00:30]} 26. f3 {[%emt 0:00:16]} Be3+ {[%emt 0:00:00]} 0-1

[Event "10th Cesme Open-B 2024"]
[Site "Cesme"]
[Date "2024.06.28"]
[Round "7"]
[White "Cakir, Mert"]
[Black "Hasirci, Ozgur Deniz"]
[Result "0-1"]
[ECO "B99"]
[WhiteElo "1828"]
[BlackElo "1903"]
[Annotator "NA RC"]
[PlyCount "64"]
[EventDate "2024.06.23"]
[EventType "swiss"]
[EventCountry "TUR"]
[SourceTitle "playchess.com"]
[Source "ChessBase"]
[SourceQuality "1"]
[TimeControl "5400+30"]

1. e4 {[%emt 0:01:00]} c5 {[%emt 0:01:00]} 2. Nf3 {[%emt 0:00:30]} d6 {[%emt 0:00:30]} 3. d4 {[%emt 0:00:30]} cxd4 {[%emt 0:00:00]} 4. Nxd4 {[%emt 0:00:00]} Nf6 {[%emt 0:00:00]} 5. Nc3 {[%emt 0:00:00]} a6 {[%emt 0:00:30]} 6. Bg5 {[%emt 0:00:30]} e6 {[%emt 0:00:30]} 7. f4 {[%emt 0:00:00]} Be7 {[%emt 0:00:00]} 8. Qf3 {[%emt 0:00:00]} Qc7 {[%emt 0:00:00]} 9. O-O-O {[%emt 0:00:00]} Nbd7 {[%emt 0:00:00]} 10. g4 {[%emt 0:00:00]} h6 {[%emt 0:00:00]} 11. Bxf6 {[%emt 0:00:00]} Bxf6 {[%emt 0:00:00]} 12. h4 {[%emt 0:00:00]} Nb6 {[%emt 0:00:00]} 13. g5 {[%emt 0:00:00]} Bxd4 {[%emt 0:00:00]} 14. Rxd4 {[%emt 0:00:00]} Qc5 {[%emt 0:00:00]} 15. Rd2 {[%emt 0:00:00]} Bd7 {[%emt 0:00:00]} 16. Be2 {[%emt 0:00:00]} O-O-O {[%emt 0:00:00]} 17. Rhd1 {[%emt 0:00:30]} Bc6 {[%emt 0:00:00]} 18. Qg3 {[%emt 0:20:30]} d5 {[%emt 0:29:00]} 19. gxh6 {[%emt 0:00:30]} gxh6 {[%emt 0:00:30]} 20. Qg7 {[%emt 0:00:30]} dxe4 {[%emt 0:00:30]} 21. Rxd8+ {[%emt 0:00:30]} Rxd8 {[%emt 0:00:30]} 22. Rxd8+ {[%emt 0:00:30]} Kxd8 {[%emt 0:00:30]} 23. Qxf7 {[%emt 0:00:30]} Qe3+ {[%emt 0:00:30]} 24. Kb1 {[%emt 0:00:30]} Nd5 {[%emt 0:00:30]} 25. Qf8+ {[%emt 0:00:30]} Kc7 {[%emt 0:00:30]} 26. Nxd5+ {[%emt 0:00:30]} exd5 {[%emt 0:00:30]} 27. Bd1 {[%emt 0:00:30]} Qd2 {[%emt 0:00:30]} 28. Qg7+ {[%emt 0:00:30]} Kb6 {[%emt 0:00:30]} 29. Qg1+ {[%emt 0:00:30]} e3 {[%emt 0:21:30]} 30. b3 {[%emt 0:40:30]} d4 {[%emt 0:01:30]} 31. f5 {[%emt 0:01:30]} Be4 {[%emt 0:03:30]} 32. Qf1 {[%emt 0:03:30]} d3 {[%emt 0:00:00]} 0-1